[Event "FIDE WSCC 65 2022"]
[Site "Assisi"]
[Date "2022.11.26"]
[Round "11.3"]
[White "Renman, Nils-Gustaf"]
[Black "Birnboim, Nathan"]
[Result "1-0"]
[ECO "A53"]
[WhiteElo "2320"]
[BlackElo "2361"]
[Annotator "TA"]
[PlyCount "81"]
[EventDate "2022.11.14"]
[EventType "swiss"]
[EventCountry "ITA"]
[SourceTitle "playchess.com"]
[Source "ChessBase"]
[SourceQuality "1"]
[TimeControl "40/5400+30:1800+30"]

{[%evp 16,81,41,21,16,8,27,22,67,67,64,69,56,43,93,111,112,107,121,102,115,108,107,101,109,87,78,88,66,64,100,46,51,47,45,41,104,75,120,111,172,157,207,203,218,41,41,8,4,0,0,0,0,0,60,57,406,399,389,383,380,375,366,361,574,461,618,585]} 1. d4 {[%emt 0:00:19]} d6 {[%emt 0:00:34]} 2. Nf3 {[%emt 0:00:21]} Nf6 {[%emt 0:00:09]} 3. c4 {[%emt 0:00:08]} Bg4 {[%emt 0:00:37]} 4. e3 {[%emt 0:01:01]} Nbd7 {[%emt 0:04:51]} 5. h3 {[%emt 0:01:53]} Bh5 {[%emt 0:00:51]} 6. Be2 {[%emt 0:01:13]} e5 {[%emt 0:01:14]} 7. Nc3 {[%emt 0:00:10]} c6 {[%emt 0:01:36]} 8. O-O {[%emt 0:04:11]} Be7 {[%emt 0:02:44]} 9. b4 {[%emt 0:06:00]} O-O {[%emt 0:02:50] A53: Old Indian Defence without Nf3.} 10. b5 {[%emt 0:15:30] [#]} cxb5 $146 {[%emt 0:03:22]} ({Predecessor:} 10... Qc7 11. Bb2 Rfe8 12. a4 Rac8 13. Rc1 Qa5 14. Nh4 Bxe2 15. Nxe2 Bf8 16. Nf5 Qc7 17. Ba3 {1-0 (48) Arabidze,M (2438)-Pakleza,Z (2501) Chess.com INT 2021}) 11. Nxb5 {[%emt 0:00:13]} e4 {[%emt 0:22:09] The position is equal.} 12. Nd2 {[%emt 0:00:16]} Bxe2 {[%emt 0:00:08]} 13. Qxe2 {[%emt 0:00:04]} Re8 {[%emt 0:04:30]} 14. a4 {[%emt 0:08:49]} Bf8 {[%emt 0:07:27]} ({Better is} 14... d5 $14) 15. Ba3 $16 {[%emt 0:01:07]} Nb8 {[%emt 0:00:26][%cal Bd7b8,Bb8c6,Bc6a5][%mdl 32]} 16. Rfb1 {[%emt 0:07:19]} Nc6 {[%emt 0:01:33]} 17. Nc3 {[%emt 0:11:26]} b6 {[%emt 0:05:01]} 18. d5 {[%emt 0:04:00]} Na5 {[%emt 0:00:52]} 19. Bb4 {[%emt 0:02:44]} Nb7 {[%emt 0:00:59]} 20. Nb3 {[%emt 0:04:35]} a5 {[%emt 0:06:42]} 21. Ba3 {[%emt 0:00:03][%cal Bb4a3,Ba3b2,Bb2c3][%mdl 32]} Nd7 {[%emt 0:00:30]} 22. Nb5 {[%emt 0:06:19]} Nbc5 {[%emt 0:04:41]} 23. Nxc5 {[%emt 0:03:46]} (23. N3d4 $16) 23... bxc5 $14 {[%emt 0:00:57]} 24. Bb2 {[%emt 0:06:34]} Nb8 {[%emt 0:00:17]} 25. Rf1 {[%emt 0:03:41]} Na6 {[%emt 0:00:48]} (25... Nd7 $14) 26. Bc3 {[%emt 0:00:07] White is much more active.} Nb4 {[%emt 0:00:16]} 27. f4 {[%emt 0:01:41]} exf3 {[%emt 0:01:40]} (27... Nd3 $16) 28. Rxf3 $18 {[%emt 0:00:22]} (28. Qxf3 Qd7 $16) 28... Rb8 {[%emt 0:08:28]} (28... Qe7 $16 29. Raf1 Rab8 30. Rxf7 Qxe3+ 31. Qxe3 Rxe3) 29. Raf1 {[%emt 0:04:31]} Rb7 {[%emt 0:00:18]} 30. Qf2 $2 {[%emt 0:00:22]} (30. Rf4 $18) 30... Nd3 $1 $14 {[%emt 0:01:47]} 31. Qg3 {[%emt 0:01:02] Threatens to win with Rf5.} (31. Qd2 $5 {[%cal Rd2d3]} Ne5 32. Rf4 $14 (32. Bxa5 $2 Nxc4 33. Bxd8 Nxd2 $19)) 31... Ne5 $1 {[%emt 0:00:54]} (31... Re4 $2 32. Rxf7 $3 {[%mdl 512]} Rxf7 33. Rxf7 Kxf7 34. Qf3+ $18) 32. Bxe5 {[%emt 0:01:48]} (32. Rf4 {seems wilder.} g6 33. Bxe5 Rxe5 34. Rf6) 32... Rxe5 {[%emt 0:00:16]} 33. Qf2 {[%emt 0:00:59][%cal Rf3f7]} Qe8 {[%emt 0:01:11]} 34. Qd2 {[%emt 0:00:13]} g6 {[%emt 0:01:56]} (34... Qd8 $11) 35. Qxa5 {[%emt 0:00:10]} Rxe3 $2 {[%emt 0:01:41][%mdl 8192] [#] A mistake that costs the game.} ({Black should try} 35... Rd7 $14) 36. Nc7 $1 $18 {[%emt 0:00:16]} Qe7 {[%emt 0:06:49] And now ...Rxf3 would win.} 37. Rxf7 {[%emt 0:00:14]} Qxf7 {[%emt 0:00:02]} 38. Rxf7 {[%emt 0:00:09]} Kxf7 {[%emt 0:00:02]} 39. Ne6 {[%emt 0:00:15] Strongly threatening Nd8+.} Rb2 {[%emt 0:04:06]} (39... Rb1+ {was called for.} 40. Kf2 Re5 41. Nxf8 Rb2+ 42. Kg1 Ree2 43. Qc7+ (43. Nxh7 Rxg2+ 44. Kh1 Rh2+ 45. Kg1 Rhg2+ 46. Kh1 Rh2+ 47. Kg1 Rhg2+ $11) 43... Kxf8 44. Qxd6+ Kg8 45. Qd8+ (45. Qxc5 Rxg2+ 46. Kh1 Rh2+ 47. Kg1 Rhg2+ 48. Kh1 Rh2+ 49. Kg1 Rhg2+ $11) 45... Kg7 46. Qc7+ Kf6) 40. Qd8 {[%emt 0:04:37][%csl Ge6][%cal Rd8f8]} Be7 {[%emt 0:02:56]} 41. Qh8 $1 {[%emt 0:30:06][%csl LRb2,LRh7] Weighted Error Value: White=0.16 (very precise) /Black=0.52} 1-0

[Event "FIDE WSCC 65 2022"]
[Site "Assisi"]
[Date "2022.11.26"]
[Round "11.4"]
[White "Roos, Louis"]
[Black "Legky, Nikolay A"]
[Result "0-1"]
[ECO "D02"]
[WhiteElo "2293"]
[BlackElo "2350"]
[Annotator "TA"]
[PlyCount "79"]
[EventDate "2022.11.14"]
[EventType "swiss"]
[EventCountry "ITA"]
[SourceTitle "playchess.com"]
[Source "ChessBase"]
[SourceQuality "1"]
[TimeControl "40/5400+30:1800+30"]

{[%evp 14,79,0,-13,33,0,0,0,27,37,37,31,100,104,104,67,88,74,128,110,227,200,361,197,179,135,117,116,97,108,88,32,32,-91,-103,-103,-85,-85,-91,-94,-97,-98,-101,-86,-67,-71,-14,-133,0,-149,-126,-165,-160,-179,-168,-180,-162,-157,-143,-204,-218,-348,-323,-400,-303,-454,-398,-380]} 1. Nf3 {[%emt 0:01:31]} d5 {[%emt 0:00:09]} 2. d4 {[%emt 0:02:14]} Nf6 {[%emt 0:03:32]} 3. Bf4 {[%emt 0:02:11]} c5 {[%emt 0:02:18]} 4. c3 {[%emt 0:00:19]} Nc6 {[%emt 0:00:18]} 5. e3 {[%emt 0:09:07]} e6 {[%emt 0:00:18]} 6. Bd3 {[%emt 0:02:56]} Bd6 {[%emt 0:00:48]} 7. Bg3 {[%emt 0:00:10]} O-O {[%emt 0:00:29]} 8. Nbd2 {[%emt 0:02:20]} a5 {[%emt 0:01:03] D02: 1 d4 d5 2 Nf3 sidelines, including 2...Nf6 3 g3 and 2...Nf6 3 Bf4.} (8... b6 $11) 9. a4 {[%emt 0:07:11]} b6 {[%emt 0:00:18]} 10. Ne5 {[%emt 0:01:58]} Bxe5 {[%emt 0:07:50] The position is equal.} 11. dxe5 {[%emt 0:04:06]} Nd7 {[%emt 0:00:04] [#]} 12. f4 $146 {[%emt 0:02:26]} (12. Qh5 g6 13. Qe2 c4 $17) ({Predecessor:} 12. Nf3 Ba6 13. Bh4 f6 14. exf6 Nxf6 15. Ng5 Bxd3 16. Qxd3 Qe8 17. Bg3 c4 18. Qc2 {½-½ (34) Jevtic,M (2001)-Matic,P (2240) Belgrade 2018}) 12... Ba6 {[%emt 0:00:04]} (12... c4 $14 13. Bc2 Nc5) 13. Bxa6 $16 {[%emt 0:08:56]} Rxa6 {[%emt 0:00:04]} 14. O-O {[%emt 0:00:09]} c4 {[%emt 0:34:18]} 15. e4 {[%emt 0:03:16]} Re8 {[%emt 0:00:05]} (15... Nc5 $142) 16. Qg4 {[%emt 0:01:40]} Nf8 {[%emt 0:05:59]} (16... Qc8 $16) 17. Rad1 $18 {[%emt 0:06:50][%cal Od2c4] Threatens to win with Nxc4!} b5 {[%emt 0:09:57]} (17... Qc7 18. exd5 exd5) 18. Kh1 {[%emt 0:04:53]} ({Not} 18. axb5 Qb6+ 19. Kh1 Qxb5 $16) (18. exd5 $142 exd5 19. Ne4 $1 {[%mdl 512]} (19. axb5 Qb6+ 20. Rf2 Qxb5 $16)) 18... Qb8 {[%emt 0:02:19]} 19. Qf3 {[%emt 0:20:52]} d4 {[%emt 0:14:54]} 20. cxd4 {[%emt 0:02:53]} Nxd4 {[%emt 0:00:16]} 21. Qg4 {[%emt 0:00:56]} Rc6 {[%emt 0:05:02]} 22. Bf2 {[%emt 0:04:38]} (22. f5 $16) 22... Nb3 $1 $14 {[%emt 0:00:32]} 23. Nxb3 {[%emt 0:00:58]} (23. axb5 $14 {keeps the upper hand.} Qxb5 24. Qe2) 23... cxb3 $17 {[%emt 0:00:02]} 24. axb5 {[%emt 0:00:19]} Qxb5 {[%emt 0:00:05] ...Rc2 is the strong threat.} 25. f5 {[%emt 0:00:11]} Rc2 {[%emt 0:02:27]} (25... Qxe5 $2 26. Bd4 exf5 27. Rxf5 $18) 26. Bd4 {[%emt 0:01:50]} Qe2 {[%emt 0:03:00] Against Rfe1. Black is more active.} 27. Qxe2 {[%emt 0:05:26]} Rxe2 {[%emt 0:00:05]} 28. Rfe1 {[%emt 0:00:37]} Rxe1+ {[%emt 0:00:05]} 29. Rxe1 {[%emt 0:00:08][%mdl 4096] Endgame KRB-KRN} Rc8 {[%emt 0:00:12]} ({Black should try} 29... Rd8 $1 $17 {[%cal Rd8d4]} 30. Bc3 a4) 30. h3 {[%emt 0:00:53]} (30. Kg1 $1 $11 {keeps the balance.}) 30... Nd7 {[%emt 0:03:13]} ({Black should play} 30... a4 $17) 31. Kh2 {[%emt 0:00:56]} (31. Ra1 $11) 31... Kf8 {[%emt 0:02:11]} 32. Kg3 {[%emt 0:01:35]} Rc4 {[%emt 0:01:12]} 33. Rd1 {[%emt 0:00:20] [#]} a4 $1 {[%emt 0:01:27]} 34. Rd3 {[%emt 0:01:33]} Ke7 {[%emt 0:01:18]} 35. Kf3 {[%emt 0:00:37]} Kd8 {[%emt 0:00:45]} 36. g4 {[%emt 0:00:32] [#]} (36. h4 $17) 36... Kc7 $1 $19 {[%emt 0:00:10]} 37. h4 {[%emt 0:00:45]} (37. Ke3 {was called for.}) 37... Kc6 {[%emt 0:00:04]} 38. g5 {[%emt 0:00:15]} g6 {[%emt 0:00:07]} 39. h5 {[%emt 0:00:31]} (39. Bc3 $142 gxf5 40. exf5 exf5 41. h5) 39... Kb5 {[%emt 0:00:26]} ({Inferior is} 39... exf5 40. exf5 gxf5 41. g6 hxg6 42. hxg6 fxg6 43. e6 $11) (39... gxh5 $2 {perishes.} 40. Kg3 $19) 40. Ke3 {[%emt 0:00:54] Quite a comeback for Black.   Weighted Error Value: White=0.44/Black=0.27 (precise)} 0-1

[Event "FIDE WSCC 65 2022"]
[Site "Assisi"]
[Date "2022.11.26"]
[Round "11.5"]
[White "Jurek, Josef"]
[Black "Vaisser, Anatoly"]
[Result "1/2-1/2"]
[ECO "D66"]
[WhiteElo "2211"]
[BlackElo "2463"]
[Annotator "TA"]
[PlyCount "82"]
[EventDate "2022.11.14"]
[EventType "swiss"]
[EventCountry "ITA"]
[SourceTitle "playchess.com"]
[Source "ChessBase"]
[SourceQuality "1"]
[TimeControl "40/5400+30:1800+30"]

{[%evp 24,82,49,43,57,58,64,56,62,59,97,97,90,74,107,83,88,88,87,87,85,43,46,48,45,45,73,60,60,56,40,45,91,100,173,137,141,131,139,106,127,131,175,37,50,0,129,123,137,123,154,126,114,57,102,65,73,82,171,154,144]} 1. Nf3 {[%emt 0:00:09]} d5 {[%emt 0:00:11]} 2. d4 {[%emt 0:00:15]} Nf6 {[%emt 0:01:26]} 3. c4 {[%emt 0:00:23]} e6 {[%emt 0:00:58]} 4. Bg5 {[%emt 0:03:11]} Be7 {[%emt 0:03:00]} 5. Nc3 {[%emt 0:01:19]} Nbd7 {[%emt 0:04:10]} 6. e3 {[%emt 0:00:51]} O-O {[%emt 0:02:56]} 7. Rc1 {[%emt 0:00:27]} h6 {[%emt 0:05:45]} 8. Bh4 {[%emt 0:00:29]} c6 {[%emt 0:05:55][%cal Bc7c6,Bc6c5][%mdl 32]} 9. Bd3 {[%emt 0:02:22]} dxc4 {[%emt 0:02:35]} 10. Bxc4 {[%emt 0:00:17]} Nd5 {[%emt 0:01:50]} 11. Bg3 {[%emt 0:01:06]} Nxc3 {[%emt 0:04:13]} 12. bxc3 {[%emt 0:00:24]} c5 {[%emt 0:02:59]} 13. O-O {[%emt 0:02:01]} Nb6 {[%emt 0:09:51] D66: Queen's Gambit Declined: Classical: Main Line (7 Rc1 c6 8 Bd3).} 14. Bd3 {[%emt 0:06:10]} Bd7 {[%emt 0:02:28]} 15. Ne5 {[%emt 0:03:12]} cxd4 {[%emt 0:02:59] White is slightly better.} 16. cxd4 {[%emt 0:01:48] [#]} Rc8 $146 {[%emt 0:01:28]} ({Predecessor:} 16... Ba4 17. Qf3 Rc8 18. Qe4 f5 19. Qxb7 Rb8 20. Qxa7 Ra8 21. Qb7 Rb8 22. Qf3 Nd5 23. Ng6 Rf7 24. Bxb8 {1-0 (24) Csaba,F (1326)-Couspeyre,T (1253) LSS email 2019}) 17. Rxc8 {[%emt 0:12:32] White is much more active.} Bxc8 {[%emt 0:01:50]} 18. Bb1 {[%emt 0:03:44]} Bd6 {[%emt 0:07:18]} 19. Qc2 {[%emt 0:08:29][%csl Gb1][%cal Rc2h7] [#]} f5 {[%emt 0:00:15]} 20. Ng6 {[%emt 0:04:31]} Re8 {[%emt 0:03:55]} 21. Bxd6 {[%emt 0:07:31]} Qxd6 {[%emt 0:00:05]} 22. Qb3 {[%emt 0:03:33]} Bd7 {[%emt 0:06:55]} 23. Ne5 $36 {[%emt 0:02:43][%mdl 2048] White is pushing.} (23. Bxf5 $2 Ba4 24. Qd3 exf5 25. Qxf5 Bc6 $19) 23... Ba4 {[%emt 0:00:56]} 24. Qb2 {[%emt 0:01:50]} Qd5 {[%emt 0:09:23]} 25. Rc1 {[%emt 0:02:59]} Rc8 {[%emt 0:02:25]} 26. Rxc8+ {[%emt 0:02:08]} Nxc8 {[%emt 0:00:02]} 27. Bd3 {[%emt 0:01:31] [#] Black must now prevent Bc4.} Nd6 {[%emt 0:03:32] Prevents Bc4.} (27... Bc6 $1 $14 28. Bf1 Qd6) 28. Qa3 $16 {[%emt 0:03:39]} b5 {[%emt 0:00:18]} (28... Bb5 $16) 29. Qb4 {[%emt 0:02:20]} Nf7 {[%emt 0:00:58]} 30. Ng6 {[%emt 0:03:45]} Qd6 {[%emt 0:00:50]} 31. Qc3 {[%emt 0:01:13]} Kh7 {[%emt 0:00:38]} 32. Nf4 {[%emt 0:01:27]} g5 {[%emt 0:00:57]} 33. Ne2 {[%emt 0:01:38]} (33. Nh5 $18) 33... b4 $14 {[%emt 0:00:41] Inhibits g4.} 34. Qc4 {[%emt 0:01:15]} (34. Qc8 $1 $14) 34... Bd7 {[%emt 0:03:13]} (34... Kg7 $11) 35. Bxf5+ $16 {[%emt 0:00:59]} Kg7 {[%emt 0:00:52]} 36. Be4 {[%emt 0:01:37]} a5 {[%emt 0:01:39]} 37. Nc1 {[%emt 0:03:22]} Qb6 {[%emt 0:01:49]} 38. Bc2 {[%emt 0:03:00]} (38. Bf3 $16) 38... Qb5 {[%emt 0:04:31]} 39. Qxb5 {[%emt 0:03:31]} Bxb5 {[%emt 0:00:01]} 40. Nb3 {[%emt 0:00:30]} Ba4 {[%emt 0:02:31]} (40... a4 $16 {is a better defense.}) 41. Kf1 {[%emt 0:32:19]} Nd6 {[%emt 0:30:50] Weighted Error Value: White=0.20 (precise) /Black=0.24 (precise)} 1/2-1/2

[Event "FIDE WSCC 65 2022"]
[Site "Assisi"]
[Date "2022.11.26"]
[Round "11.6"]
[White "Knaak, Rainer"]
[Black "Thuesen, Mogens"]
[Result "1-0"]
[ECO "D48"]
[WhiteElo "2457"]
[BlackElo "2115"]
[Annotator "TA"]
[PlyCount "65"]
[EventDate "2022.11.14"]
[EventType "swiss"]
[EventCountry "ITA"]
[SourceTitle "playchess.com"]
[Source "ChessBase"]
[SourceQuality "1"]
[TimeControl "40/5400+30:1800+30"]

{[%evp 22,64,-7,-13,27,46,66,56,99,95,163,97,160,144,172,160,189,172,319,322,354,334,368,298,255,169,215,204,253,192,178,200,189,188,184,182,324,338,512,485,452,399,29982,29983,29999]} 1. d4 {[%emt 0:00:05]} d5 {[%emt 0:00:25]} 2. c4 {[%emt 0:00:10]} e6 {[%emt 0:00:09]} 3. Nf3 {[%emt 0:00:21]} c6 {[%emt 0:00:42]} 4. e3 {[%emt 0:00:33]} Nf6 {[%emt 0:00:33]} 5. Nc3 {[%emt 0:00:44]} Nbd7 {[%emt 0:00:13]} 6. Bd3 {[%emt 0:00:14]} dxc4 {[%emt 0:00:46]} 7. Bxc4 {[%emt 0:00:06]} b5 {[%emt 0:00:06]} 8. Bd3 {[%emt 0:00:40]} Bb7 {[%emt 0:00:24]} 9. O-O {[%emt 0:01:39]} a6 {[%emt 0:02:26]} 10. a4 {[%emt 0:02:29]} b4 {[%emt 0:04:25]} 11. Ne4 {[%emt 0:00:34]} c5 {[%emt 0:00:31]} 12. Nxf6+ {[%emt 0:01:12]} gxf6 {[%emt 0:05:49] D48: Semi-Slav: Meran System: 7...b5 8 Bd3 a6.} 13. Qe2 {[%emt 0:08:16]} Bd6 {[%emt 0:08:59]} 14. e4 {[%emt 0:36:36]} Qc7 {[%emt 0:12:33] White is slightly better.} 15. d5 {[%emt 0:03:28]} (15. Be3 {simplifies} cxd4 16. Bxd4 Bf4 17. g3) 15... Rg8 {[%emt 0:18:00]} (15... O-O $16) 16. Bc4 {[%emt 0:03:28]} ({Better is} 16. Rd1 $18) 16... Ke7 {[%emt 0:02:07] [#]} (16... Nb6 $142) 17. a5 $146 {[%emt 0:03:39]} ({Predecessor:} 17. e5 Bxe5 18. Rd1 Nb6 19. Nxe5 Qxe5 20. Be3 Nxc4 21. Qxc4 Bxd5 22. Qxc5+ Ke8 23. g3 {0-1 (47) Gallego Jimenez,V (2367)-Bolado Saez,S (2349) Madrid 2014}) 17... h5 {[%emt 0:05:14]} 18. h3 {[%emt 0:03:32]} h4 {[%emt 0:07:52]} 19. Rd1 {[%emt 0:04:36]} (19. Nxh4 $6 Ne5 $14) 19... Rg7 {[%emt 0:01:41]} (19... Ne5 $142 20. Be3 (20. Nxh4 Rh8 $16) 20... Nxf3+ 21. Qxf3 Rg7) 20. Bh6 $18 {[%emt 0:00:20]} (20. Nxh4 Rh8 21. Nf3 Rxh3 22. dxe6 (22. Bxa6 $2 Qc8 $19) 22... fxe6 $17) 20... Rg6 {[%emt 0:02:09]} 21. Be3 {[%emt 0:00:05]} Ne5 {[%emt 0:02:24]} 22. Nxe5 {[%emt 0:07:32]} Bxe5 {[%emt 0:00:17]} 23. Qc2 {[%emt 0:00:19] Threatens to win with dxe6.} Rag8 {[%emt 0:06:24]} (23... Rc8 {is a better defense.} 24. Rac1 Bd6) 24. Bf1 {[%emt 0:00:07]} Bd6 {[%emt 0:00:04]} (24... Bh2+ 25. Kh1 Bd6 26. Rac1 exd5 27. exd5) 25. Rac1 {[%emt 0:03:58][%cal Ba1c1,Bc1c5,Bc5c4,Bc4b4,Bb4b6][%mdl 32]} exd5 {[%emt 0:03:30]} (25... Qxa5 $2 26. dxe6 (26. Bxc5 Bxc5 27. Qxc5+ Qxc5 $16) 26... f5 {[#]} 27. Rxd6 $1 {[%mdl 512]} (27. Bxc5 Qxc5 28. Qxc5 Bxc5 $18) 27... Bxe4 28. Qc4 Rxe6 29. Rxe6+ fxe6 30. f3 Bxf3 31. Qxh4+ Kf7 32. Rxc5 $18) (25... Bh2+ $2 26. Kh1 Bd6 27. dxe6 fxe6 28. Rxd6 $1 {[%mdl 512]} Kxd6 29. Qd1+ Ke7 30. Bxc5+ Ke8 31. Bb6 $18 (31. Bxb4 Qd7 $16)) 26. Bxc5 {[%emt 0:02:57]} Bxc5 {[%emt 0:00:27]} (26... Qxa5 $2 27. Bxd6+ (27. exd5 Bxc5 28. Qxc5+ Qxc5 $14) 27... Kxd6 28. Qc4 $18) 27. Qxc5+ {[%emt 0:00:07]} Qxc5 {[%emt 0:00:05]} 28. Rxc5 {[%emt 0:00:04] Hoping for Rc7+.} Kd6 {[%emt 0:01:15] Against Rc7} (28... Rc8 {was necessary.} 29. Rxc8 Bxc8) 29. Rc4 {[%emt 0:01:03]} Rg5 {[%emt 0:03:15]} (29... b3 {keeps fighting.} 30. Rb4 Ba8 31. exd5 (31. Bxa6 Rxg2+ 32. Kf1 Rg1+ 33. Ke2 Rxd1 $11) 31... Rg5 32. Rxb3 (32. Bxa6 Rxg2+ 33. Kf1 Rg1+ 34. Ke2 Rxd1 $16) 32... Rxd5 33. Rb6+ Kd7 34. Rxd5+ Bxd5 35. Rxa6 f5) 30. Rxb4 {[%emt 0:00:16]} Bc8 {[%emt 0:00:05]} 31. Kh2 {[%emt 0:04:43]} Kc5 $2 {[%emt 0:01:23]} (31... d4 $18 32. Rdxd4+ Ke7) 32. Rb6 {[%emt 0:00:13][%csl Gb6][%cal Rb2b4]} dxe4 {[%emt 0:00:52]} 33. b4# {[%emt 0:12:54] White took control after the opening.   Weighted Error Value: White=0.27 (precise) /Black=0.70} 1-0

[Event "FIDE WSCC 65 2022"]
[Site "Assisi"]
[Date "2022.11.26"]
[Round "11.7"]
[White "Jansa, Vlastimil"]
[Black "Ubezio, Marco"]
[Result "1-0"]
[ECO "C67"]
[WhiteElo "2390"]
[BlackElo "2070"]
[Annotator "TA"]
[PlyCount "75"]
[EventDate "2022.11.14"]
[EventType "swiss"]
[EventCountry "ITA"]
[SourceTitle "playchess.com"]
[Source "ChessBase"]
[SourceQuality "1"]
[TimeControl "40/5400+30:1800+30"]

{[%evp 15,75,8,11,12,28,31,39,36,38,13,26,0,50,45,54,41,41,34,61,43,64,60,69,63,70,69,54,41,42,20,95,95,114,125,108,90,269,262,296,265,378,358,361,344,341,326,335,333,408,407,399,396,371,179,346,283,29970,29971,29969,29970,5357,1718]} 1. e4 {[%emt 0:00:03]} e5 {[%emt 0:00:17]} 2. Nf3 {[%emt 0:00:10]} Nc6 {[%emt 0:00:07]} 3. Bb5 {[%emt 0:00:10]} Nf6 {[%emt 0:00:32]} 4. O-O {[%emt 0:01:30][%cal Bh1f1,Bf1e1,Be1e5][%mdl 32]} Nxe4 {[%emt 0:01:17]} 5. Re1 {[%emt 0:00:33]} Nd6 {[%emt 0:00:07]} 6. Nxe5 {[%emt 0:00:42]} Be7 {[%emt 0:00:07]} 7. Bf1 {[%emt 0:00:57]} Nxe5 {[%emt 0:00:10]} 8. Rxe5 {[%emt 0:00:18]} O-O {[%emt 0:00:09]} 9. Nc3 {[%emt 0:00:38] C67: Ruy Lopez: Berlin Defence: 4 0-0 Nxe4.} c6 {[%emt 0:01:08] Against Nd5} 10. d4 {[%emt 0:01:08]} Bf6 {[%emt 0:09:30] Against d5} 11. Re1 {[%emt 0:02:09] White is slightly better.} Re8 {[%emt 0:00:38]} 12. Rxe8+ {[%emt 0:03:08]} Nxe8 {[%emt 0:00:32]} 13. d5 {[%emt 0:00:57] [#]} Bxc3 $146 {[%emt 0:08:03]} ({Better is} 13... d6 $11) ({Predecessor:} 13... d6 14. Ne4 Be7 15. c4 cxd5 16. cxd5 Bf5 17. Ng3 Bg6 18. Be3 Nf6 19. Qb3 Ng4 {½-½ (61) Navara,D (2734)-Ding,L (2805) Prague 2019}) 14. bxc3 $14 {[%emt 0:00:13]} cxd5 {[%emt 0:00:08]} 15. Qxd5 {[%emt 0:02:15] Threatens to win with Bg5.} Nf6 {[%emt 0:03:15]} 16. Qd4 $40 {[%emt 0:04:55][%mdl 128] White attacks.} Qb6 {[%emt 0:15:11]} 17. a4 {[%emt 0:04:55][%cal Ba2a4,Ba4a5][%mdl 32] White is more active.} Qxd4 {[%emt 0:01:15]} 18. cxd4 {[%emt 0:00:07]} d5 {[%emt 0:03:27]} 19. Bd3 {[%emt 0:09:13] Prevents Bf5.} Bd7 {[%emt 0:02:04]} 20. a5 {[%emt 0:01:24]} Re8 {[%emt 0:07:54]} 21. Bf4 {[%emt 0:11:55]} Ne4 $1 {[%emt 0:02:08]} 22. Ra3 {[%emt 0:07:06] Prevents Nc3.} a6 {[%emt 0:13:12]} (22... Nd6 $11 23. f3 (23. Bxd6 Re1+ 24. Bf1 Bb5 $11) 23... Nc4 24. Bxc4 dxc4) 23. f3 $16 {[%emt 0:01:31]} Nf6 {[%emt 0:00:26]} 24. Be5 {[%emt 0:07:22]} Nh5 {[%emt 0:01:19]} 25. Rc3 {[%emt 0:08:25] [#] aiming for Rc7.} g6 $2 {[%emt 0:12:09] Loses the game.} (25... Bc6 $16) 26. Rc7 $18 {[%emt 0:01:11][%csl LRb7,LRd7]} Bc8 {[%emt 0:00:30]} 27. c4 {[%emt 0:02:24]} Be6 {[%emt 0:02:11]} (27... f6 $142) 28. c5 {[%emt 0:02:29]} ({Less strong is} 28. Rxb7 dxc4 29. Be4 f6 $16) 28... Bc8 {[%emt 0:00:39]} 29. c6 {[%emt 0:02:45]} bxc6 {[%emt 0:00:07]} 30. Rxc6 {[%emt 0:00:06]} f6 {[%emt 0:02:54]} 31. Bd6 {[%emt 0:01:13]} ({Don't take} 31. Bxf6 Nxf6 32. Rxf6 Re3 $18) 31... Ng7 {[%emt 0:01:56]} 32. Bxa6 {[%emt 0:06:30]} Bxa6 {[%emt 0:01:47]} 33. Rxa6 {[%emt 0:00:09] KRB-KRN} Ne6 {[%emt 0:00:09]} 34. Bc5 {[%emt 0:05:18]} (34. Rb6 $142 Nxd4 35. a6 Re1+ 36. Kf2 Re2+ 37. Kf1) 34... Nf4 $2 {[%emt 0:00:44]} (34... Nxc5 35. dxc5 Kf7) 35. Rxf6 {[%emt 0:14:11]} Nd3 {[%emt 0:11:58] [#]} (35... Ne6 $18 36. Bd6 Nxd4) 36. Rf8+ $1 {[%emt 0:00:00][%mdl 512]} Rxf8 {[%emt 0:00:00]} 37. Bxf8 {[%emt 0:00:00]} Kxf8 {[%emt 0:00:00]} 38. a6 {[%emt 0:00:00] Weighted Error Value: White=0.12 (very precise) /Black=0.48} 1-0